Cogmind - Beta 16.1 @@@ ROGUE MODE // 2026.03.12 @ 23:56:01 Player: parasect Result: Self-destructed Performance ------------- Evolutions (2) 1000 Regions Visited (3) 600 Robots Destroyed (84) 420 Value Destroyed (2215) 2215 Prototype IDs (3) 60 Alien Tech Used (0) 0 Bonus (13) 13 TOTAL SCORE: 4308 Bonus ------- High Alert Combat Kills 13 Cogmind --------- Core Integrity 282/550 Matter 19/300 Energy 100/100 System Corruption 3% Temperature Cool (0) Movement Treading (240) Ox1 Location -8/Materials Parts ------- > --- POWER (1) -------- (None) > --- PROPULSION (5) --- Light Treads Light Treads Light Treads Armored Wheel > --- UTILITY (3) ------ Large Storage Unit Makeshift Hacking Suite > --- WEAPON (2) ------- Heavy Assault Rifle Scythe > --- INVENTORY (15) --- Aerolev Unit Improved Heat Sink Improved Sensor Array Improved Signal Interpreter Advanced Targeting Computer Improved Medium Armor Plating Improved Medium Armor Plating Improved Medium Armor Plating Hardlight Generator Hacking Suite Gauss Rifle Assault Cannon Flak Cannon Grenade Launcher Peak State ------------ > --- POWER ------------ Light Angular Momentum Engine > --- PROPULSION ------- Light Treads Light Treads Aluminum Leg Armored Wheel Improved VTOL Module > --- UTILITY ---------- Large Storage Unit Hardened Medium Armor Plating Makeshift Hacking Suite > --- WEAPON ----------- Subdweller Laser Scythe > --- INVENTORY -------- Improved VTOL Module Improved Heat Sink Improved Sensor Array Improved Signal Interpreter Advanced Targeting Computer Propulsion Shielding Hacking Suite Particle Gun Heavy Assault Rifle Enhanced Autogun Gauss Rifle Assault Cannon Assault Cannon Grenade Launcher Mining Laser [Rating: 31] Favorites ----------- Power Ion Engine Engine Ion Engine Power Core Light Nuclear Core Propulsion Light Treads Treads Light Treads Leg Aluminum Leg Wheel Armored Wheel Flight Unit Improved VTOL Module Utility Large Storage Unit Device Seismic Detector Storage Large Storage Unit Hackware Makeshift Hacking Suite Protection Propulsion Shielding Weapon Subdweller Machine Gun Energy Gun Particle Gun Energy Cannon Subdweller Beam Cannon Ballistic Gun Subdweller Machine Gun Ballistic Cannon Assault Cannon Launcher Grenade Launcher Special Weapon Mining Laser Slashing Weapon Scythe Build | -11 -10 -10 -8 ------- Run | Yrd Mat Sub Mat Slots Evolved 4 | . . . 4 Power . | . . . . Propulsion 3 | . . . 3 Utility 1 | . . . 1 Weapon . | . . . . Parts Attached 58 | 1 10 16 31 Power 6 | . 1 1 4 Engine 5 | . 1 1 3 Core 1 | . . . 1 Reactor . | . . . . Propulsion 15 | . 3 3 9 Treads 10 | . 3 2 5 Leg 1 | . . 1 . Wheel 3 | . . . 3 Hover . | . . . . Flight 1 | . . . 1 Utility 19 | 1 4 4 10 Device 4 | 1 1 1 1 Storage 2 | . 2 . . Processor . | . . . . Hackware 2 | . . . 2 Protection 11 | . 1 3 7 Artifact . | . . . . Weapon 18 | . 2 8 8 Energy Gun 2 | . . 1 1 Energy Cannon 2 | . . 2 . Ballistic Gun 9 | . 2 4 3 Ballistic Cannon 2 | . . . 2 Launcher 1 | . . . 1 Special Weapon 1 | . . 1 . Impact Weapon . | . . . . Slashing Weapon 1 | . . . 1 Piercing Weapon . | . . . . Special Melee Weapon . | . . . . Unidentified Prototypes 3 | . . . 3 Parts Lost 16 | . . 8 8 Power 1 | . . . 1 Propulsion 5 | . . 3 2 Utility 5 | . . 2 3 Weapon 5 | . . 3 2 Highest Loss Streak 3 | . . 2 3 To Critical Strikes . | . . . . Average Backups 12 | 6 12 12 14 Power . | 1 1 1 . Propulsion 1 | 4 3 1 . Utility 5 | . 4 5 6 Weapon 4 | 1 3 4 6 Tool/Special . | . . . . Unused Backups 25 | . 4 1 20 Power 1 | . 1 . . Propulsion 3 | . . 1 2 Utility 14 | . 1 . 13 Weapon 7 | . 2 . 5 Tool/Special . | . . . . Average Slot Usage (%) 94 | . 100 95 89 Engine 11 | . 14 14 7 Treads 23 | . 27 23 20 Leg 2 | . . . 5 Wheel 2 | . . . 8 Device 7 | . 13 7 3 Storage 12 | . 14 14 9 Hackware 1 | . . . 5 Protection 5 | . . 6 9 Energy Gun 2 | . . 4 1 Energy Cannon 1 | . . 3 . Ballistic Gun 19 | . 28 20 12 Peak Build Rating 31 | 7 8 12 31 Average Rating 14 | 6 7 10 24 On Entrance 8 | 6 7 8 11 Avg Prop Armor Cover (%) 15 | . . . 15 Naked Turns . | . . . . Heaviest Build 48 | 11 29 42 48 Greatest Support 60 | 20 40 40 60 Greatest Overweight (x) 3 | . . 1 3 Average Overweight (x) . | . . . 1 Largest Inventory Capacity 15 | 8 15 15 15 Average Capacity 14 | 8 14 15 15 Most Carried 15 | 7 15 15 15 Average Carried 13 | 6 12 13 14 Final Capacity 15 | 8 15 15 15 Final Carried 15 | 7 15 12 14 Class Distribution -------------------- 66% | Mutant 33% | Scavenger-Mutant Dominant Class ---------------- Mutant | -10/Materials Mutant | -10/Subcaves Scavenger-Mutant | -8/Materials Resources | -11 -10 -10 -8 ----------- Run | Yrd Mat Sub Mat Matter Collected 1947 | 216 410 345 976 Remotely . | . . . . Salvage Created 2648 | 64 565 459 1560 Parts 165 | 5 35 28 97 Haulers Intercepted 4 | . 2 . 2 Recyclers Shooed 3 | . 2 . 1 Parts Field Recycled . | . . . . Retrieved Matter . | . . . . Parts Self-Destructed 10 | . . 10 . Prevented . | . . . . Parts Restored . | . . . . Kills | -11 -10 -10 -8 ------- Run | Yrd Mat Sub Mat Combat Hostiles Destroyed 60 | . 12 12 36 Melee 3 | . . . 3 Guns 40 | . 12 10 18 Cannons 5 | . . 2 3 AOE 12 | . . . 12 Classes Destroyed 13 | 2 5 3 3 Worker 4 | . 1 . 3 Builder 2 | . . . 2 Tunneler 2 | 1 . . 1 Hauler 4 | . 2 . 2 Recycler 6 | 1 1 . 4 Operator 3 | . . . 3 Watcher 3 | . 1 . 2 Swarmer 21 | . 6 1 14 Grunt 21 | . 6 . 15 Sentry 6 | . . 1 5 Hunter 2 | . . . 2 Artisan 1 | . . 1 . Subdweller 10 | . . 10 . Best Kill Streak 13 | 2 5 2 13 Combat Bots Only 9 | . 3 2 9 Max Kills in Single Turn 4 | 1 1 1 4 Gunslinging 1 | . . . 1 Exploded 3 | . . . 3 Melee 1 | . . . 1 Uniques/NPCs Destroyed . | . . . . Combat | -11 -10 -10 -8 -------- Run | Yrd Mat Sub Mat Hostile Shots Fired 322 | . 68 51 203 Missed 66 | . 11 6 49 Hits 256 | . 57 45 154 Projectile 256 | . 57 45 154 AOE 4 | . . 4 . Critical Strikes 7 | . . 2 5 Actively Blocked 1 | . . 1 . Damage Taken 3762 | . 559 1079 2124 Core 507 | . 59 180 268 Absorbed by Shields . | . . . . Redirected to Shielding 139 | . 19 120 . Regen/Repaired (Parts) 88 | . . . 88 Core Remaining (%) 52 | 100 . 4 . Volleys Fired 225 | 3 63 57 102 Largest 2 | 2 2 2 2 Hottest 160 | 40 40 160 74 Shots Fired 402 | 6 126 90 180 Gun 342 | 6 126 67 143 Cannon 45 | . . 20 25 Launcher 12 | . . . 12 Special 3 | . . 3 . Kinetic 357 | 6 126 59 166 Thermal 33 | . . 31 2 Explosive 12 | . . . 12 Electromagnetic . | . . . . Robot Hit Streak 18 | 4 8 18 9 Robot Miss Streak 5 | . 4 2 5 Penetration Max . | . . . . Secondary Targets 3 | . 1 . 2 Max Gunslinging Chain 1 | . 1 . 1 Shots Hit Robots 282 | 4 80 66 132 Core Hits 142 | 3 29 25 85 Critical Kills 1 | . 1 . . Critical Parts Destroyed 1 | . . 1 . Critical Strikes 5 | . 1 3 1 Burn 1 | . . 1 . Destroy 3 | . 1 2 . Sever 1 | . . . 1 Melee Attacks 18 | . . . 18 Impact . | . . . . Slashing 18 | . . . 18 Piercing . | . . . . Sneak Attacks 4 | . . . 4 Combat Hostiles . | . . . . Follow-up Attacks . | . . . . Damage Inflicted 5947 | 37 872 1081 3957 Guns 3271 | 37 872 834 1528 Cannons 607 | . . 247 360 Explosions 1537 | . . . 1537 Melee 518 | . . . 518 Ramming 14 | . . . 14 Kinetic 3500 | 37 872 745 1846 Thermal 378 | . . 336 42 Explosive 1537 | . . . 1537 Electromagnetic . | . . . . Impact . | . . . . Slashing 518 | . . . 518 Piercing . | . . . . Highest Corruption 3 | . . . 3 Average Corruption 3 | . . . 3 Corruption Purged . | . . . . Corruption Blocked . | . . . . Effects 17 | . . . 17 Message Errors 3 | . . . 3 Matter Fused 5 | . . . 5 Energy Discharges 2 | . . . 2 Data Loss (minor) 6 | . . . 6 Data Loss (major) 1 | . . . 1 Overload Shots . | . . . . Overflow Damage 237 | . . . 237 Projectiles . | . . . . Explosions 134 | . . . 134 Melee 103 | . . . 103 Knockbacks 3 | . . . 3 Impact . | . . . . Kinetic 2 | . . . 2 Secondary 1 | . . . 1 Self-Inflicted Damage 116 | . . . 116 Shots 6 | . . . 6 Rammed 2 | . . . 2 Targets Rammed 3 | . . . 3 Kicked . | . . . . Crushed 1 | . . . 1 Highest Temperature 183 | . 12 78 183 Average Temperature 25 | . 8 20 26 Received Heat Transfer 1152 | . 141 201 810 Siege Activations . | . . . . Martial Activations . | . . . . Shielding Activations . | . . . . Robots Disrupted . | . . . . Combat Hostiles . | . . . . Robots Corrupted . | . . . . Combat Hostiles . | . . . . Parts Fried . | . . . . Impact Corruptions . | . . . . Robots Melted . | . . . . Combat Hostiles . | . . . . Parts Melted 1 | . . 1 . Heat Transferred 679 | . . 629 50 Parts Sabotaged . | . . . . Parts Stolen . | . . . . Parts Stripped . | . . . . Power Chain Reactions . | . . . . Alert | -11 -10 -10 -8 ------- Run | Yrd Mat Sub Mat Maximum Alert Level 2 | . . . 2 Low Security (%) 86 | 100 100 . 75 Level 1 13 | . . . 23 Level 2 . | . . . . Level 3 . | . . . . Level 4 . | . . . . Level 5 . | . . . . High Security . | . . . . Max Security . | . . . . Peak Influence 522 | 10 150 . 522 Initial . | . . . . Average 102 | 3 61 . 135 Influence Increases 1750 | 10 440 85 1215 Destroy 0b10 Robot/C 1000 | . 240 40 720 Destroy 0b10 Robot/NC 120 | 10 25 . 85 Destroy Leader 224 | . 56 . 168 Successful Hack 44 | . 44 . . Select Force Hacks 30 | . 30 . . Disable Machine 135 | . . . 135 Destroy Structure 62 | . . . 62 Lose Combat Pursuer 135 | . 45 45 45 Influence Decreases 1223 | 10 372 153 688 Entered New Map 33 | . . 33 . Time Decay 936 | 10 372 96 458 Lost Part 104 | . . 24 80 Purge Threat 150 | . . . 150 Squads Dispatched 7 | . 1 . 6 Investigation 2 | . 1 . 1 Extermination . | . . . . Reinforcement 4 | . . . 4 Assault . | . . . . Garrison 1 | . . . 1 Intercept . | . . . . Searches Triggered . | . . . . Construction Impeded 1 | . . . 1 Haulers Reinforced . | . . . . Active Scanning Responses . | . . . . Cargo Convoy Interrupts . | . . . . Stealth | -11 -10 -10 -8 --------- Run | Yrd Mat Sub Mat Distress Signals 5 | . 1 . 4 Communications Jammed . | . . . . Distress Signals . | . . . . Times Spotted 91 | . 23 14 54 Peak Tracking Total 7 | . 6 3 7 Tactical Retreats 7 | . 3 1 3 Traps | -11 -10 -10 -8 ------- Run | Yrd Mat Sub Mat Traps Triggered 1 | . . . 1 Indirectly . | . . . . Trap Hack Attempts . | . . . . Triggered . | . . . . Disarmed . | . . . . Reprogrammed . | . . . . Reused . | . . . . Traps Extracted . | . . . . Installed . | . . . . Triggered . | . . . . Machines | -11 -10 -10 -8 ---------- Run | Yrd Mat Sub Mat Machines Disabled 9 | . . . 9 Max in Single Turn 4 | . . . 4 Garrison Access 1 | . . . 1 Machines Repaired . | . . . . Machines Dismantled . | . . . . Machines Sabotaged . | . . . . Overloaded Fab Kills . | . . . . Hacking | -11 -10 -10 -8 --------- Run | Yrd Mat Sub Mat Machines Accessed 15 | . 8 . 7 Terminals 10 | . 6 . 4 Fabricators . | . . . . Repair Stations 2 | . 1 . 1 Recycling Units 1 | . 1 . . Scanalyzers 1 | . . . 1 Garrison Access 1 | . . . 1 Total Hacks 47 | . 29 . 18 Successful 19 | . 13 . 6 Failed 26 | . 15 . 11 Catastrophic 2 | . 2 . . Database Lockouts 2 | . 1 . 1 Manual 28 | . 20 . 8 Terminals 36 | . 26 . 10 Fabricators . | . . . . Repair Stations 4 | . 2 . 2 Recycling Units 1 | . 1 . . Scanalyzers 3 | . . . 3 Garrison Access 3 | . . . 3 Terminal Hacks 6 | . 4 . 2 Robot Analysis 1 | . 1 . . Branch Access Points 1 | . . . 1 Unreport Threat 1 | . . . 1 Locate Traps 2 | . 2 . . Registered Prototypes 1 | . 1 . . Fabricator Hacks . | . . . . Repair Station Hacks 3 | . 1 . 2 Scan Component 2 | . 1 . 1 Repair 1 | . . . 1 Recycling Unit Hacks . | . . . . Scanalyzer 1 | . . . 1 Retrieve Study 1 | . . . 1 Garrison Access Hacks 1 | . . . 1 Seal Access 1 | . . . 1 Unauthorized Hacks 8 | . 8 . . Terminals 7 | . 7 . . Botnet 2 | . 2 . . Skim 5 | . 5 . . Fabricators . | . . . . Repair Stations . | . . . . Recycling Units 1 | . 1 . . Tunnel 1 | . 1 . . Scanalyzers . | . . . . Garrison Access . | . . . . Data Cores Recovered 1 | . . . 1 Used . | . . . . Hacking Detections 13 | . 7 . 6 Full Trace Events . | . . . . Feedback Events . | . . . . Feedback Blocked . | . . . . Robot Schematics Acquired . | . . . . Robots Built . | . . . . Authchips . | . . . . Time . | . . . . Total Robot Build Rating . | . . . . Part Schematics Acquired . | . . . . Parts Built . | . . . . Authchips . | . . . . Time . | . . . . Total Part Build Rating . | . . . . Part Studies Acquired 1 | . . . 1 Parts Repaired 1 | . . . 1 Time 26 | . . . 26 Parts Recycled . | . . . . Recycled Matter . | . . . . Retrieved Matter . | . . . . Retrieved Components . | . . . . Parts Scanalyzed . | . . . . Part Schematics Acquired . | . . . . Parts Damaged . | . . . . Bothacking | -11 -10 -10 -8 ------------ Run | Yrd Mat Sub Mat Used RIF Installer . | . . . . Robots Hacked . | . . . . Non-combat . | . . . . Combat . | . . . . Robot Hacks Applied . | . . . . Relay Couplers Released . | . . . . Fabnet Peak Effective % . | . . . . Robots Rewired . | . . . . Allies Hacked . | . . . . Hacks Repelled . | . . . . Allies | -11 -10 -10 -8 -------- Run | Yrd Mat Sub Mat Total Allies . | . . . . Largest Group . | . . . . Highest-Rated Group . | . . . . Highest-Rated Ally . | . . . . Total Orders . | . . . . Ally Attacks . | . . . . Total Damage . | . . . . Kills . | . . . . Allies Corrupted . | . . . . Allies Melted . | . . . . Intel | -11 -10 -10 -8 ------- Run | Yrd Mat Sub Mat Active Infowar (turns) 2085 | 19 614 912 540 Seismic 2085 | 19 614 912 540 Robot Analysis Total 1 | . 1 . . Derelict Logs Recovered 2 | . . 2 . Drone Launches . | . . . . Drone Recoveries . | . . . . Exploration | -11 -10 -10 -8 ------------- Run | Yrd Mat Sub Mat Turns Passed 4496 | 37 1119 1809 1531 Spaces Moved 2088 | 23 541 867 657 Core . | . . . . Treads 1671 | . 522 867 282 Legs 42 | 23 19 . . Wheels 375 | . . . 375 Hover . | . . . . Flight . | . . . . Fastest Speed 110 | 120 120 160 110 Average Speed 166 | 120 158 179 156 Slowest Speed 320 | 120 160 240 320 Overloaded Moves . | . . . . Propulsion Burnouts . | . . . . Robots Hopped . | . . . . Potential Cave-ins . | . . . . Cave-ins Triggered . | . . . . Exploration Rate (%) 49 | 4 88 47 58 Regions Visited 3 Branch Regions 1 Pre-discovered Areas 2 | . 2 . . Known Exits Taken . | . . . . Unknown Exits Taken 3 | 1 1 1 . Scrap Searched 4 | . . 4 . Spaces Dug 2 | . . . 2 Terrain Destroyed 66 | . . 1 65 Melee 1 | . . . 1 Projectile 6 | . . 1 5 AOE 59 | . . . 59 Terrain Rammed . | . . . . Walls Destroyed . | . . . . Machines Disabled . | . . . . Actions | -11 -10 -10 -8 --------- Run | Yrd Mat Sub Mat Total 2711 | 27 686 1021 977 Wait 187 | . 47 53 87 Move 2085 | 22 540 866 657 Hop . | . . . . Pick Up 48 | 1 12 10 25 Fast Attach 12 | 1 . . 11 Attach 17 | . . 9 8 Detach 5 | . . 1 4 Swap 66 | . 16 16 34 Drop 45 | . 8 9 28 Fire 225 | 3 63 57 102 Melee 18 | . . . 18 Ram . | . . . . Kick . | . . . . Crush 3 | . . . 3 Escape Stasis . | . . . . Rewire . | . . . . Trap . | . . . . Miscellaneous . | . . . . Route ------- -11/Scrapyard -10/Materials (discovered 4 exits: [*Mat x2] / [*Min] / [*Sub]) -10/Subcaves (discovered 2 exits: *Mat x2) -8/Materials (discovered 2 exits: *Fac x2) History --------- Turn | Location | Event 9 | -11/Scrapyard | Discovered new exit (range 2) 38 | -11/Scrapyard | Entered Materials 316 | -10/Materials | Build established: Mutant 370 | -10/Materials | Discovered new exit (range 14) 599 | -10/Materials | Discovered new exit (range 3) 722 | -10/Materials | Discovered new exit (range 14) 778 | -10/Materials | Loaded intel: 14 trap records 847 | -10/Materials | Learned Recycling recycling unit intel 866 | -10/Materials | Learned 2 Mines zone layouts 890 | -10/Materials | Learned location of 1 exit from Recycling 917 | -10/Materials | Learned Materials emergency access door positions 1020 | -10/Materials | Central database locked down 1150 | -10/Materials | Discovered new exit (range 5) 1157 | -10/Materials | Entered Subcaves 1158 | -10/Subcaves | Approached by a straggling Scientist 1393 | -10/Subcaves | Shifting Twisted Machinery released Flamer 1404 | -10/Subcaves | Shifting Twisted Machinery released Sub. Machine Gun 1413 | -10/Subcaves | Discovered new exit (range 10) 1841 | -10/Subcaves | Shifting Twisted Machinery released Sub. Beam Cannon 1850 | -10/Subcaves | Shifting Twisted Machinery released Sub. Monowheel 1914 | -10/Subcaves | A swath of the cavern ceiling suddenly collapsed 2046 | -10/Subcaves | Discovered new exit (range 10) 2066 | -10/Subcaves | A swath of the cavern ceiling suddenly collapsed 2110 | -10/Subcaves | Learned 4 Materials zone layouts 2126 | -10/Subcaves | Learned Materials emergency access door positions 2211 | -10/Subcaves | Core integrity fell below 50% 2451 | -10/Subcaves | Core integrity fell below 20% 2966 | -10/Subcaves | Entered Materials 2966 | -8/Materials | Evolved 4 slots: Propulsion x3, Utility x1 2967 | -8/Materials | Identified exit to Factory 3445 | -8/Materials | Build established: Scavenger-Mutant 3802 | -8/Materials | Discovered exit to Factory (range 16) 3831 | -8/Materials | Central database locked down 3927 | -8/Materials | Garrison activated, responded to threat 4260 | -8/Materials | Repaired Lgt. Treads 4497 | -8/Materials | Self-destructed Last Messages --------------- payload. 04483_ S-10 Pest unfolds itself. 04484_ S-10 Pest destroyed. 04484_ Destroyed Flight Unit. 04484_ S-10 Pest destroyed. 04484_ Destroyed Wheel. 04484_ U-05 Engineer destroyed. 04484_ S-10 Pest destroyed. 04486_ Imp. Medium Armor Plating destroyed. 04486_ Destroyed Imp. Medium Armor Plating. 04486_ Lgt. Angular Momentum Engine destroyed. 04486_ Destroyed Lgt. Angular Momentum Engine. 04489_ R-06 Scavenger collects Lgt. Ion Engine. 04492_ Nuclear Reactor explodes. 04492_ Destroyed Imp. Hover Unit. 04492_ W-25 Informer destroyed. 04492_ A-02 Transporter destroyed. 04492_ Nuclear Reactor explodes. 04492_ G-47 Trooper destroyed. 04495_ Acquired 8 matter. Map ----- +----------------------------------------------------+ | #####[!#??????# # """ """ + !== ### | | # #???#### + ### = | | # ##### ## # #?#=* < | | # # ! ## ################# | | [[# # ! # ########## | | [[#! # #! | | #=[+ """# """ """ """ | | + # R"# ###+###### "G" """ """ | | # # """###### ## " " """ """ | | ## # #????# ## | | "" ## ############ /## | | "" ## + ## """ """ """ | | "" ######## ###### ## """ """ """ | | #??????# #????# ## """ """ """ | | # ###??????# #????# ## | | ###????????# #????# ## # | | ???????????# #????# ## """ "" # | | ???????????# #????# ## """ "" ] # | | ???????????# #????# ## """ " ] = # | | ???????????# #????####+##### ! | | ???????????# #?????### ##### | | ???????????# #???###;# # | | ???????????# #???# | | ??????????##+##### % ! | | ??????????# # % | | ??????????# # =@[ | | ??????????# """ # * = """ | | ??????????# """ # """ = [r """ | | ??????????# """ # """ [ """ | | ??????????# # """" % | | ?????????####+############ [ | | ?????????# T *% ##### ##### | | ?????????# < ! = ######????# #?# | | ?????????# ###?????????# #?# " | | ????########## #???????????# #?# " | | ????# # """ """ """ #???????????# #?# " | | ??????????????????" """ """ #???????????# ### " | | ??????????????????? ?""" """ #??????????## # #=" | | ????????????????????? #?????????### # | | ????????????????????? ? #?????????# # # =% | | ????????????????????? ? #?????????# #%##### | | ???????????????????? ##?##?#####?????????# #% % | | ?????????????????????????????????????????## | | ?????????????????????????????????????????# # ! | | ?????????????????????????????????????????######### | | ??????????????????????????????????????????###????# | | ?????????????????????????????????????????????????# | | ???????????????????????????????????????????????### | | ???????????????????????????????????????????????#!! | | ???????????????????????????????????????????????#!! | +----------------------------------------------------+ Best States ------------- Heat Dissipation 45 Energy Generation 18 Energy Capacity 250 Matter Stores 300 Matter Capacity 300 Sight Range 16 Terrain Scan Density 10 Armor Coverage 800 Propulsion Shielding 33 Evasion (%) 55 Recoil Reduction 3 Offensive Hacking 11 Item Schematics ----------------- None Robot Schematics ------------------ None Fabricated ------------ Nothing Repaired ---------- Lgt. Treads | 37% | -8/Materials Studied --------- Grenade Launcher | -8/Materials | Hacked Alien Tech Used ----------------- None Achievements -------------- None Challenges ------------ None Game ------ Seed PrecisionStealthAirjet Manual? 0 Play Time 00:38:55 Cumulative 172.4 hours Start 2026.03.12 @ 23:25:43 End 2026.03.12 @ 23:56:01 Sessions 1 Manual Loads 0 Difficulty Rogue Special Mode None Game No. 115 Rogue 114 Adventurer 0 Explorer 1 Win Type - Total 15 Types 11/0/2/1/0/0/0/1/0/0 Lore% 56 Gallery% 58 Achievement% 54 Wizard Run 0 Options --------- Layout 2 ASCII 0 Keyboard 1 Movement Numpad Keybinds 0 Fullscreen 2 Font 24/Terminus Map View 50x44 Zoom Use 0% Tactical HUD 1 Map Filters NONE Filters NONE Steam 1 RUN: f144d395-7543-4505-af7d-ba1087fd28fe